fUST/lending_fUST_20250305
["ID","MTS","AMOUNT","RATE_DAILY","PERIOD"]
[355456041,1741183093485,-287.78,0.00042,30]
[355456042,1741183093533,-999.0,0.00042191,120]
[355456043,1741183093575,-259.87,0.000422,30]
[355456044,1741183093613,-161.23,0.000423,30]
[355456045,1741183093652,-13595.61,0.000423,30]
[355456046,1741183093695,-1567.4,0.00042569,30]
[355456047,1741183093739,-999.0,0.00042739,120]
[355456048,1741183093784,-332.51,0.000432,30]
[355456049,1741183093821,-1000.0,0.000432,90]
[355456050,1741183093862,-999.0,0.00043287,120]
[355456051,1741183093901,-259.87,0.000434,30]
[355456052,1741183093936,-287.78,0.000435,30]
[355456053,1741183093981,-230.91531,0.000436,120]
[355456054,1741183094023,-161.23,0.000436,30]
[355456055,1741183094061,-602.63,0.00043835,120]
[355456056,1741183094101,-162.70132176,0.00043835,120]
[355456057,1741183094139,-999.0,0.00043835,120]
[355456058,1741183094176,-252.10279119,0.00044,30]
[355456059,1741183094215,-200.0,0.00044,120]
[355456060,1741183094251,-12598.0,0.00044,120]
[355456061,1741183094287,-13595.61,0.00044,30]
[355456062,1741183094324,-173.68617599,0.00044,120]
[355456063,1741183094365,-416.66666667,0.00044,120]
[355456064,1741183094411,-602.63,0.00044383,120]
[355456065,1741183094458,-382.54342783,0.00044383,120]
[355456066,1741183094501,-332.51,0.000444,30]
[355456067,1741183094542,-259.87,0.000446,30]
[355456068,1741183094591,-161.23,0.000447,30]
[355456069,1741183094631,-287.78,0.000447,30]
[355456070,1741183094672,-618.014595,0.000447,78]
[355456071,1741183094710,-500.0,0.000448,79]
[355456072,1741183094747,-500.0,0.000449,80]
[355456073,1741183094786,-602.63,0.00044931,120]
[355456074,1741183095033,-470.0,0.00045,120]
[355456075,1741183095073,-1055.0,0.00045,30]
[355456076,1741183095115,-1986.2,0.00045,30]
[355456077,1741183095154,-5036.74052416,0.00045,120]
[355456078,1741183095198,-434.5588694,0.00045,120]
[355456079,1741183095236,-1312.7452037,0.00045,120]
[355456080,1741183095275,-40000.0,0.00045,120]
[355456081,1741183095313,-500.0,0.00045,81]
[355456082,1741183095357,-416.66666667,0.00045,120]
[355456083,1741183095400,-13595.61,0.000454,30]
[355456084,1741183095443,-602.63,0.00045479,120]
[355456085,1741183095486,-332.51,0.000455,30]
[355456086,1741183095533,-692.18505,0.000458,120]
[355456087,1741183095578,-230.91531,0.000458,120]
[355456088,1741183095623,-259.87,0.000458,30]
[355456089,1741183095666,-161.23,0.000459,30]
[355456090,1741183095708,-12598.0,0.00046,120]
[355456091,1741183095748,-29133.10290934,0.00046,120]
[355456092,1741183095788,-602.63,0.00046027,120]
[355456093,1741183095829,-297.8,0.000461,30]
[355456094,1741183095872,-1198.63665138,0.00046198,52]
[355456095,1741183095912,-5000.0,0.000462,120]
[355456096,1741183095952,-172.7727069,0.00046219,120]
[355456097,1741183095991,-1986.2,0.000465,30]
[355456098,1741183096031,-287.78,0.000465,30]
[355456099,1741183096071,-153.0,0.00046521,30]
[355456100,1741183096112,-1000.0,0.00046574,120]
[355456101,1741183096151,-602.63,0.00046575,120]
[355456102,1741183096188,-500.0,0.00046609,90]
[355456103,1741183096224,-332.51,0.000467,30]
[355456104,1741183096260,-13595.61,0.000467,30]
[355456105,1741183096300,-500.0,0.00046709,98]
[355456106,1741183096343,-172.7727069,0.00046712,120]
[355456107,1741183096383,-500.0,0.00046809,97]
[355456108,1741183096428,-200.0,0.00046818,120]
[355456109,1741183096470,-200.0,0.00046908,120]
[355456110,1741183096512,-500.0,0.00046909,96]
[355456111,1741183096554,-9000.0,0.00047,30]
[355456112,1741183096595,-259.87,0.00047,30]
[355456113,1741183096636,-161.23,0.00047,30]
[355456114,1741183096673,-165.0,0.00047,90]
[355456115,1741183096711,-500.0,0.00047009,96]
[355456116,1741183096750,-200.0,0.00047041,120]
[355456117,1741183096792,-200.0,0.00047063,120]
[355456118,1741183096833,-500.0,0.00047109,100]
[355456119,1741183096876,-20000.0,0.00047123,120]
[355456120,1741183096916,-20000.0,0.00047123,120]
[355456121,1741183096956,-20000.0,0.00047123,120]
[355456122,1741183096997,-20000.0,0.00047123,120]
[355456123,1741183097035,-20000.0,0.00047123,120]
[355456124,1741183097077,-20000.0,0.00047123,120]
[355456125,1741183097118,-602.63,0.00047123,120]
[355456126,1741183097156,-172.7727069,0.00047205,120]
[355456127,1741183097195,-500.0,0.00047209,93]
[355456128,1741183097241,-10002.40831313,0.000473,120]
[355456129,1741183097280,-500.0,0.00047309,93]
[355456130,1741183097320,-200.0,0.0004736,120]
[355456131,1741183097361,-200.0,0.00047365,120]
[355456132,1741183097400,-7643.70817391,0.000474,90]
[355456133,1741183097439,-500.0,0.00047409,95]
[355456134,1741183097479,-200.0,0.00047449,120]
[355456135,1741183097517,-82126.53,0.000475,120]
[355456136,1741183097558,-1100.16927579,0.000475,120]
[355456137,1741183097599,-500.0,0.00047509,100]
[355456138,1741183097640,-200.0,0.00047513,120]
[355456139,1741183097680,-200.0,0.00047534,120]
[355456140,1741183097718,-1986.2,0.000476,30]
[355456141,1741183097756,-287.78,0.000476,30]
[355456142,1741183097792,-500.0,0.00047609,96]
[355456143,1741183097829,-602.63,0.00047671,120]
[355456144,1741183097867,-172.7727069,0.00047699,120]
[355456145,1741183097905,-8978.26006247,0.000477,120]
[355456146,1741183097942,-500.0,0.00047709,90]
[355456147,1741183097981,-200.0,0.00047739,120]
[355456148,1741183098020,-200.0,0.00047761,120]
[355456149,1741183098060,-200.0,0.00047791,120]
[355456150,1741183098099,-332.51,0.000478,30]
[355456151,1741183098137,-500.0,0.00047809,90]
[355456152,1741183098178,-200.0,0.00047847,120]
[355456153,1741183098216,-13595.61,0.000479,30]
[355456154,1741183098257,-500.0,0.00047909,100]
[355456155,1741183098298,-200.0,0.0004792,120]
[355456156,1741183098336,-2899.999999,0.00048,120]
[355456157,1741183098374,-692.18505,0.00048,120]
[355456158,1741183098415,-200.0,0.00048,120]
[355456159,1741183098453,-230.91531,0.00048,120]
[355456160,1741183098491,-64699.999999,0.00048,120]
[355456161,1741183098531,-12598.0,0.00048,120]
[355456162,1741183098574,-1039.63470295,0.00048,120]
[355456163,1741183098614,-6000.0,0.00048,30]
[355456164,1741183098654,-271200.60410534,0.00048,120]
[355456165,1741183098693,-1042.72765168,0.00048,120]
[355456166,1741183098733,-500.0,0.00048009,93]
[355456167,1741183098773,-200.0,0.00048025,120]
[355456168,1741183098812,-393.09728038,0.00048055,120]
[355456169,1741183098851,-259.87,0.000481,30]
[355456170,1741183098890,-161.23,0.000481,30]
[355456171,1741183098930,-512.3656193,0.000481,120]
[355456172,1741183098971,-500.0,0.00048109,99]
[355456173,1741183099010,-172.7727069,0.00048192,120]
[355456174,1741183099049,-500.0,0.00048209,93]
[355456175,1741183099090,-602.63,0.00048219,120]
[355456176,1741183099130,-500.0,0.00048309,92]
[355456177,1741183099323,-200.0,0.00048344,120]
[355456178,1741183099365,-500.0,0.00048409,100]
[355456179,1741183099405,-22785.85164784,0.00048411,30]
[355456180,1741183099445,-217.44518966,0.00048451,115]
[355456181,1741183099486,-500.0,0.00048509,92]
[355456182,1741183099524,-5000.0,0.0004851,30]
[355456183,1741183099567,-500.0,0.00048609,92]
[355456184,1741183099608,-200.0,0.00048674,120]
[355456185,1741183099646,-500.0,0.00048679,30]
[355456186,1741183099684,-3490.5,0.00048684,30]
[355456187,1741183099723,-172.7727069,0.00048685,120]
[355456188,1741183099762,-1986.2,0.000487,30]
[355456189,1741183099802,-176.41,0.000487,30]
[355456190,1741183099841,-287.78,0.000487,30]
[355456191,1741183099879,-500.0,0.00048709,98]
[355456192,1741183099919,-200.0,0.00048715,120]
[355456193,1741183099956,-157.8205,0.0004875,120]
[355456194,1741183099994,-250.7355,0.0004875,120]
[355456195,1741183100033,-200.0,0.00048753,120]
[355456196,1741183100073,-2200.0,0.00048757,120]
[355456197,1741183100113,-602.63,0.00048767,120]
[355456198,1741183100151,-1000.0,0.00048767,120]
[355456199,1741183100191,-1000.0,0.00048767,120]
[355456200,1741183100231,-1000.0,0.00048767,120]
[355456201,1741183100269,-508.55054817,0.00048767,120]
[355456202,1741183100309,-200.0,0.00048797,120]
[355456203,1741183100349,-254.23003985,0.000488,120]
[355456204,1741183100390,-500.0,0.00048809,96]
[355456205,1741183100428,-306.0,0.00048822,30]
[355456206,1741183100469,-200.0,0.00048889,120]
[355456207,1741183100508,-409.728723,0.00048899,120]
[355456208,1741183100549,-165.0,0.00048904,90]
[355456209,1741183100591,-500.0,0.00048909,97]
[355456210,1741183100635,-200.0,0.00048992,120]
[355456211,1741183100674,-300.54488016,0.00049,120]
[355456212,1741183100715,-156407.77199766,0.00049,90]
[355456213,1741183100753,-59360.7124316,0.00049,30]
[355456214,1741183100791,-59360.7124316,0.00049,30]
[355456215,1741183100831,-1043465.93291037,0.00049,90]
[355456216,1741183100872,-50000.0,0.00049,30]
[355456217,1741183100913,-9999.0,0.00049,120]
[355456218,1741183100952,-9999.0,0.00049,120]
[355456219,1741183100991,-9999.0,0.00049,120]
[355456220,1741183101028,-9999.0,0.00049,120]
[355456221,1741183101065,-9999.0,0.00049,120]
[355456222,1741183101103,-261119.99666468,0.00049,120]
[355456223,1741183101145,-170570.7429909,0.00049,90]
[355456224,1741183101186,-66071.89359982,0.00049,90]
[355456225,1741183101225,-305.36543835,0.00049,30]
[355456226,1741183101272,-479659.51256964,0.00049,30]
[355456227,1741183101314,-354.470915,0.00049,30]
[355456228,1741183101357,-500.0,0.00049009,95]
[355456229,1741183101403,-2200.0,0.00049031,120]
[355456230,1741183101445,-150.0,0.000491,120]
[355456231,1741183101490,-160.92,0.000491,45]
[355456232,1741183101538,-160.92,0.000491,45]
[355456233,1741183101581,-160.92,0.000491,45]
[355456234,1741183101626,-160.92,0.000491,45]
[355456235,1741183101668,-160.92,0.000491,45]
[355456236,1741183101707,-500.0,0.00049109,91]
[355456237,1741183101746,-200.0,0.00049117,120]
[355456238,1741183101783,-50000.0,0.00049125,120]
[355456239,1741183101821,-500.0,0.00049209,94]
[355456240,1741183101857,-150.7,0.000493,120]
[355456241,1741183101894,-2200.0,0.00049305,120]
[355456242,1741183101932,-200.0,0.00049308,120]
[355456243,1741183101973,-500.0,0.00049309,93]
[355456244,1741183102017,-602.63,0.00049315,120]
[355456245,1741183102059,-500.0,0.00049315,120]
[355456246,1741183102099,-500.0,0.00049315,120]
[355456247,1741183102141,-500.0,0.00049315,120]
[355456248,1741183102180,-500.0,0.00049315,120]
[355456249,1741183102216,-367.32785784,0.00049315,120]
[355456250,1741183102253,-500.0,0.00049315,120]
[355456251,1741183102288,-500.0,0.00049315,120]
[355456252,1741183102324,-500.0,0.00049315,120]
[355456253,1741183102361,-500.0,0.00049315,120]
[355456254,1741183102398,-500.0,0.00049315,120]
[355456255,1741183102433,-500.0,0.00049315,120]
[355456256,1741183102470,-500.0,0.00049315,120]
[355456257,1741183102506,-500.0,0.00049315,120]
[355456258,1741183102542,-500.0,0.00049315,120]
[355456259,1741183102578,-500.0,0.00049315,120]
[355456260,1741183102619,-500.0,0.00049315,120]
[355456261,1741183102654,-500.0,0.00049315,120]
[355456262,1741183102692,-500.0,0.00049315,120]
[355456263,1741183102728,-500.0,0.00049315,120]
[355456264,1741183102766,-500.0,0.00049315,120]
[355456265,1741183102804,-500.0,0.00049315,120]
[355456266,1741183102846,-500.0,0.00049315,120]
[355456267,1741183102882,-500.0,0.00049315,120]
[355456268,1741183102919,-500.0,0.00049315,120]
[355456269,1741183102956,-500.0,0.00049315,120]
[355456270,1741183102994,-500.0,0.00049315,120]
[355456271,1741183103032,-500.0,0.00049315,120]
[355456272,1741183103069,-500.0,0.00049315,120]
[355456273,1741183103107,-500.0,0.00049315,120]
[355456274,1741183103143,-500.0,0.00049315,120]
[355456275,1741183103183,-500.0,0.00049315,120]
[355456276,1741183103223,-500.0,0.00049315,120]
[355456277,1741183103261,-500.0,0.00049315,120]
[355456278,1741183103298,-500.0,0.00049315,120]
[355456279,1741183103339,-500.0,0.00049315,120]
[355456280,1741183103377,-500.0,0.00049315,120]
[355456281,1741183103566,-500.0,0.00049315,120]
[355456282,1741183103611,-500.0,0.00049315,120]
[355456283,1741183103655,-500.0,0.00049315,120]
[355456284,1741183103694,-500.0,0.00049315,120]
[355456285,1741183103733,-500.0,0.00049315,120]
[355456286,1741183103773,-500.0,0.00049315,120]
[355456287,1741183103812,-500.0,0.00049315,120]
[355456288,1741183103850,-500.0,0.00049315,120]
[355456289,1741183103888,-500.0,0.00049315,120]
[355456290,1741183103926,-500.0,0.00049315,120]
[355456291,1741183103969,-500.0,0.00049315,120]
[355456292,1741183104008,-500.0,0.00049315,120]
[355456293,1741183104046,-500.0,0.00049315,120]
[355456294,1741183104083,-500.0,0.00049315,120]
[355456295,1741183104124,-500.0,0.00049315,120]
[355456296,1741183104161,-500.0,0.00049315,120]
[355456297,1741183104200,-500.0,0.00049315,120]
[355456298,1741183104238,-500.0,0.00049315,120]
[355456299,1741183104277,-500.0,0.00049315,120]
[355456300,1741183104315,-500.0,0.00049315,120]
[355456301,1741183104354,-500.0,0.00049315,120]
[355456302,1741183104392,-500.0,0.00049315,120]
[355456303,1741183104432,-500.0,0.00049315,120]
[355456304,1741183104471,-500.0,0.00049315,120]
[355456305,1741183104510,-500.0,0.00049315,120]
[355456306,1741183104552,-500.0,0.00049315,120]
[355456307,1741183104593,-500.0,0.00049315,120]
[355456308,1741183104634,-500.0,0.00049315,120]
[355456309,1741183104675,-500.0,0.00049315,120]
[355456310,1741183104716,-500.0,0.00049315,120]
[355456311,1741183104758,-500.0,0.00049315,120]
[355456312,1741183104798,-500.0,0.00049315,120]
[355456313,1741183104838,-500.0,0.00049315,120]
[355456314,1741183104876,-500.0,0.00049315,120]
[355456315,1741183104916,-500.0,0.00049315,120]
[355456316,1741183104955,-500.0,0.00049315,120]
[355456317,1741183105001,-500.0,0.00049315,120]
[355456318,1741183105043,-500.0,0.00049315,120]
[355456319,1741183105086,-500.0,0.00049315,120]
[355456320,1741183105126,-500.0,0.00049315,120]
[355456321,1741183105167,-500.0,0.00049315,120]
[355456322,1741183105206,-500.0,0.00049315,120]
[355456323,1741183105246,-500.0,0.00049315,120]
[355456324,1741183105286,-500.0,0.00049315,120]
[355456325,1741183105324,-494.84638195,0.00049315,120]
[355456326,1741183105371,-200.0,0.00049336,120]
[355456327,1741183105414,-500.0,0.00049409,92]
[355456328,1741183105455,-200.0,0.00049455,120]
[355456329,1741183105494,-500.0,0.00049509,96]
[355456330,1741183105535,-200.0,0.00049517,120]
[355456331,1741183105575,-200.0,0.00049518,120]
[355456332,1741183105619,-2200.0,0.00049579,120]
[355456333,1741183105661,-500.0,0.00049609,91]
[355456334,1741183105702,-500.0,0.00049709,97]
[355456335,1741183105742,-500.0,0.00049809,99]
[355456336,1741183105780,-602.63,0.00049863,120]
[355456337,1741183105820,-200.0,0.00049872,120]
[355456338,1741183105858,-878.0,0.000499,49]
[355456339,1741183105896,-500.0,0.00049909,96]
[355456340,1741183105932,-1243.0,0.00049989,120]
[355456341,1741183105969,-1243.0,0.00049989,120]
[355456342,1741183106007,-1243.0,0.00049989,120]
[355456343,1741183106046,-1243.0,0.00049989,120]
[355456344,1741183106085,-1307.91340359,0.00049989,120]
[355456345,1741183106126,-200.0,0.00049997,120]
[355456346,1741183106165,-534.7193042,0.0005,120]
[355456347,1741183106209,-200.0,0.0005,120]
[355456348,1741183106249,-12598.0,0.0005,120]
[355456349,1741183106287,-7010.55150516,0.0005,30]
[355456350,1741183106326,-10000.0,0.0005,30]
[355456351,1741183106365,-500.0,0.00050009,96]
[355456352,1741183106404,-200.0,0.00050023,120]
[355456353,1741183106445,-500.0,0.00050109,91]
[355456354,1741183106485,-2200.0,0.00050127,120]
[355456355,1741183106527,-692.18505,0.000502,120]
[355456356,1741183106569,-230.91531,0.000502,120]
[355456357,1741183106611,-500.0,0.00050209,99]
[355456358,1741183106652,-500.0,0.00050309,100]
[355456359,1741183106692,-500.0,0.00050409,96]
[355456360,1741183106732,-602.63,0.0005041,120]
[355456361,1741183106775,-500.0,0.00050509,93]
[355456362,1741183106819,-200.0,0.0005057,120]
[355456363,1741183106858,-500.0,0.00050609,95]
[355456364,1741183106897,-2200.0,0.00050675,120]
[355456365,1741183106938,-500.0,0.00050709,100]
[355456366,1741183106979,-200.0,0.00050802,120]
[355456367,1741183107020,-500.0,0.00050809,96]
[355456368,1741183107060,-500.0,0.00050909,93]
[355456369,1741183107101,-602.63,0.00050958,120]
[355456370,1741183107143,-1000.0,0.00051,120]
[355456371,1741183107184,-259.87,0.00051,30]
[355456372,1741183107225,-161.23,0.00051,30]
[355456373,1741183107267,-3000.0,0.00051,85]
[355456374,1741183107311,-500.0,0.00051009,98]
[355456375,1741183107354,-3000.0,0.0005101,85]
[355456376,1741183107398,-3000.0,0.0005102,85]
[355456377,1741183107436,-3000.0,0.0005103,85]
[355456378,1741183107477,-3000.0,0.0005104,85]
[355456379,1741183107516,-3000.0,0.0005105,85]
[355456380,1741183107559,-3000.0,0.0005106,85]
[355456381,1741183107598,-5750.765125,0.0005107,85]
[355456382,1741183107636,-500.0,0.00051109,99]
[355456383,1741183107676,-306.0,0.00051123,30]
[355456384,1741183107833,-200.0,0.00051131,120]
[355456385,1741183107903,-200.0,0.00051157,120]
[355456386,1741183107942,-500.0,0.00051209,99]
[355456387,1741183107986,-2200.0,0.00051223,120]
[355456388,1741183108027,-200.0,0.00051286,120]
[355456389,1741183108066,-153.0,0.00051288,30]
[355456390,1741183108105,-500.0,0.00051309,100]
[355456391,1741183108145,-168.0,0.00051349,120]
[355456392,1741183108184,-500.0,0.00051409,99]
[355456393,1741183108224,-602.63,0.00051506,120]
[355456394,1741183108264,-500.0,0.00051509,96]
[355456395,1741183108304,-500.0,0.00051609,94]
[355456396,1741183108348,-153.4121236,0.00051616,30]
[355456397,1741183108390,-153.0,0.00051616,30]
[355456398,1741183108429,-153.0,0.00051616,30]
[355456399,1741183108469,-153.0,0.00051616,30]
[355456400,1741183108511,-153.0,0.00051616,30]
[355456401,1741183108554,-153.0,0.00051616,30]
[355456402,1741183108595,-153.0,0.00051616,30]
[355456403,1741183108634,-153.0,0.00051616,30]
[355456404,1741183108680,-153.0,0.00051616,30]
[355456405,1741183108719,-153.0,0.00051616,30]
[355456406,1741183108760,-153.0,0.00051616,30]
[355456407,1741183108801,-153.0,0.00051616,30]
[355456408,1741183108843,-153.0,0.00051616,30]
[355456409,1741183108881,-500.0,0.00051709,99]
[355456410,1741183108917,-687.77036337,0.00051709,120]
[355456411,1741183108954,-200.0,0.00051728,120]
[355456412,1741183108992,-2200.0,0.00051771,120]
[355456413,1741183109030,-500.0,0.00051809,96]
[355456414,1741183109071,-500.0,0.00051909,97]
[355456415,1741183109107,-153.0,0.00051945,30]
[355456416,1741183109147,-153.0,0.00051945,30]
[355456417,1741183109184,-153.0,0.00051945,30]
[355456418,1741183109222,-153.0,0.00051945,30]
[355456419,1741183109260,-153.0,0.00051945,30]
[355456420,1741183109300,-153.0,0.00051945,30]
[355456421,1741183109339,-153.0,0.00051945,30]
[355456422,1741183109391,-153.0,0.00051945,30]
[355456423,1741183109433,-153.0,0.00051945,30]
[355456424,1741183109477,-153.0,0.00051945,30]
[355456425,1741183109518,-153.0,0.00051945,30]
[355456426,1741183109561,-153.0,0.00051945,30]
[355456427,1741183109604,-1243.0,0.00051989,120]
[355456428,1741183109648,-1243.0,0.00051989,120]
[355456429,1741183109687,-1000.0,0.00051999,120]
[355456430,1741183109726,-1915.86246999,0.00052,120]
[355456431,1741183109765,-1000.0,0.00052,120]
[355456432,1741183109806,-12598.0,0.00052,120]
[355456433,1741183109848,-7000.0,0.00052,30]
[355456434,1741183109887,-332.51,0.00052,30]
[355456435,1741183109927,-500.0,0.00052009,100]
[355456436,1741183109967,-200.0,0.00052032,120]
[355456437,1741183110013,-200.0,0.00052044,120]
[355456438,1741183110058,-602.63,0.00052054,120]
[355456439,1741183110103,-200.0,0.0005209,120]
[355456440,1741183110143,-500.0,0.00052109,95]
[355456441,1741183110183,-500.0,0.00052209,93]
[355456442,1741183110222,-500.0,0.00052309,96]
[355456443,1741183110259,-2200.0,0.00052319,120]
[355456444,1741183110297,-692.18505,0.000524,120]
[355456445,1741183110337,-230.91531,0.000524,120]
[355456446,1741183110377,-500.0,0.00052409,92]
[355456447,1741183110415,-153.0,0.00052438,30]
[355456448,1741183110453,-500.0,0.00052509,91]
[355456449,1741183110491,-2592.69023729,0.000526,30]
[355456450,1741183110529,-602.63,0.00052602,120]
[355456451,1741183110572,-500.0,0.00052609,92]
[355456452,1741183110610,-500.0,0.00052709,92]
[355456453,1741183110652,-200.0,0.00052711,120]
[355456454,1741183110689,-306.0,0.00052767,30]
[355456455,1741183110728,-153.0,0.00052767,30]
[355456456,1741183110765,-153.0,0.00052767,30]
[355456457,1741183110802,-153.0,0.00052767,30]
[355456458,1741183110838,-500.0,0.00052809,90]
[355456459,1741183110876,-200.0,0.00052818,120]
[355456460,1741183110913,-2200.0,0.00052867,120]
[355456461,1741183110950,-500.0,0.00052909,90]
[355456462,1741183110986,-1000.0,0.00053,120]
[355456463,1741183111022,-4999.999999,0.00053,120]
[355456464,1741183111058,-1986.2,0.00053,30]
[355456465,1741183111094,-287.78,0.00053,30]
[355456466,1741183111131,-500.0,0.00053009,99]
[355456467,1741183111168,-153.0,0.00053096,30]
[355456468,1741183111204,-153.0,0.00053096,30]
[355456469,1741183111239,-153.0,0.00053096,30]
[355456470,1741183111276,-153.0,0.00053096,30]
[355456471,1741183111312,-500.0,0.00053109,100]
[355456472,1741183111347,-602.63,0.0005315,120]
[355456473,1741183111383,-200.0,0.00053177,120]
[355456474,1741183111418,-200.0,0.00053194,120]
[355456475,1741183111454,-500.0,0.00053209,98]
[355456476,1741183111495,-500.0,0.00053309,94]
[355456477,1741183111538,-500.0,0.00053409,97]
[355456478,1741183111579,-2200.0,0.00053415,120]
[355456479,1741183111624,-200.0,0.00053458,120]
[355456480,1741183111666,-238.91548,0.000535,120]
[355456481,1741183111704,-500.0,0.00053509,92]
[355456482,1741183111742,-200.0,0.00053547,120]
[355456483,1741183111780,-500.0,0.00053609,100]
[355456484,1741183111821,-602.63,0.00053698,120]
[355456485,1741183111861,-500.0,0.00053709,92]
[355456486,1741183111899,-500.0,0.00053809,97]
[355456487,1741183111938,-500.0,0.00053909,92]
[355456488,1741183111975,-306.0,0.00053918,30]
[355456489,1741183112166,-2200.0,0.00053963,120]
[355456490,1741183112208,-200.0,0.00054,120]
[355456491,1741183112249,-12598.0,0.00054,120]
[355456492,1741183112291,-2250.0,0.00054,120]
[355456493,1741183112333,-500.0,0.00054009,94]
[355456494,1741183112375,-200.0,0.00054022,120]
[355456495,1741183112417,-500.0,0.00054109,94]
[355456496,1741183112459,-500.0,0.00054209,93]
[355456497,1741183112501,-602.63,0.00054246,120]
[355456498,1741183112540,-153.0,0.00054247,30]
[355456499,1741183112581,-200.0,0.00054276,120]
[355456500,1741183112625,-200.0,0.00054291,120]
[355456501,1741183112665,-2092.1,0.000543,120]
[355456502,1741183112705,-500.0,0.00054309,90]
[355456503,1741183112743,-500.0,0.00054409,91]
[355456504,1741183112783,-200.0,0.00054427,120]
[355456505,1741183112824,-500.0,0.00054509,98]
[355456506,1741183112865,-843.01802154,0.00054511,120]
[355456507,1741183112904,-200.0,0.0005453,120]
[355456508,1741183112944,-200.0,0.00054586,120]
[355456509,1741183112984,-692.18505,0.000546,120]
[355456510,1741183113024,-230.91531,0.000546,120]
[355456511,1741183113066,-500.0,0.00054609,91]
[355456512,1741183113108,-200.0,0.00054703,120]
[355456513,1741183113148,-500.0,0.00054709,92]
[355456514,1741183113187,-602.63,0.00054794,120]
[355456515,1741183113230,-152.92012157,0.00054794,120]
[355456516,1741183113269,-666.0,0.00054794,120]
[355456517,1741183113789,153.0,0.00051945,30]
[355456518,1741183114476,300000.0,0.00054795,30]
[355456528,1741183435198,150.0,0.00049348,90]
[355456529,1741183438893,40000.0,0.00049348,30]
[355456530,1741183463006,8297.99629588,0.00049165,120]
[355456531,1741183471613,1500.0,0.00049165,120]
[355456532,1741183475791,1913.06906124,0.00049165,30]
[355456537,1741183635665,300.0,0.00049165,60]
[355456538,1741183636130,300.0,0.00049165,60]
[355456539,1741183636595,400.0,0.00049165,60]
[355456540,1741183694635,500.0,0.00049165,30]
[355456545,1741183705356,500.0,0.00049165,30]
[355456546,1741183715917,500.0,0.00049165,30]
[355456547,1741183726626,500.0,0.00049165,30]
[355456548,1741183732527,150.0,0.00049165,120]
[355456549,1741183738911,500.0,0.00049165,30]
[355456552,1741183750075,500.0,0.00049165,30]
[355456553,1741183760793,500.0,0.00049165,30]
[355456558,1741183771450,500.0,0.00049165,30]
[355456559,1741183782120,500.0,0.00049165,30]
[355456560,1741183792834,500.0,0.00049165,30]
[355456562,1741183803414,500.0,0.00049165,30]
[355456563,1741183814071,500.0,0.00049165,30]
[355456564,1741183816154,50000.0,0.00049165,30]